fUST/lending_fUST_20251024
["ID","MTS","AMOUNT","RATE_DAILY","PERIOD"]
[392185250,1761243543177,150.0,0.00020332,30]
[392185251,1761243546102,5000.0,0.00020121,7]
[392185252,1761243554408,5000.0,0.00020121,7]
[392185253,1761243569408,-150.0,0.00019095,2]
[392185254,1761243569432,-11.76487843,0.00019288,2]
[392185255,1761243615528,-211.24914168,0.000193,2]
[392185256,1761243616867,150.0,0.00017788,30]
[392185257,1761243617257,150.0,0.00018635,30]
[392185258,1761243617658,150.0,0.00019482,30]
[392185259,1761243618731,-206.63475055,0.000193,2]
[392185260,1761243690579,150.0,0.00018012,30]
[392185261,1761243691010,150.0,0.0001887,30]
[392185262,1761243759486,150.0,0.00017993,30]
[392185263,1761243764432,-82.11610777,0.000193,2]
[392185264,1761243764454,-232.40917972,0.00019307,2]
[392185265,1761243766274,-137.3237403,0.00019307,2]
[392185266,1761243766301,-134.40204744,0.00019314,2]
[392185267,1761243829560,150.0,0.00017983,30]
[392185268,1761243829969,150.0,0.00018839,30]
[392185269,1761243835402,5000.0,0.00019314,2]
[392185270,1761243843488,5000.0,0.00019314,2]
[392185271,1761243851278,0.01,0.00019314,2]
[392185272,1761243851300,650.93765394,0.00019314,2]
[392185273,1761243860120,5000.0,0.00019314,2]
[392185274,1761243868053,4349.07234606,0.00019314,2]
[392185275,1761243868074,650.92765394,0.00019314,2]
[392185276,1761243881004,150.0,0.0003013,120]
[392185277,1761243881867,9349.08234606,0.00019,2]
[392185278,1761243881888,10000.01,0.00019,2]
[392185279,1761243881909,10000.01,0.00019,2]
[392185280,1761243881930,10000.01,0.00019,2]
[392185281,1761243881951,10000.01,0.00019,2]
[392185282,1761243881972,10000.01,0.00019,2]
[392185283,1761243881992,10000.01,0.00019,2]
[392185284,1761243882012,10000.01,0.00019,2]
[392185285,1761243882032,10000.01,0.00019,2]
[392185286,1761243882052,10000.01,0.00019,2]
[392185287,1761243885084,-614.3278276,0.00019,2]
[392185288,1761243888393,-270.26244025,0.00019,2]
[392185289,1761243892343,-224.28183329,0.0001881,2]
[392185290,1761243895919,-300.0,0.0001881,2]
[392185291,1761243901710,-300.0,0.00018622,2]
[392185292,1761243902553,-3505.33494717,0.00018622,2]
[392185293,1761243902675,-2989.34010566,0.00018622,2]
[392185294,1761243903419,150.0,0.00017963,30]
[392185295,1761243903818,201.55,0.00018818,30]
[392185296,1761243903959,-300.0,0.00018809,2]
[392185297,1761243904224,302.33,0.00019674,30]
[392185298,1761243904633,403.1,0.00020529,30]
[392185299,1761243904843,-409.22374534,0.0001881,2]
[392185300,1761243905896,-196.0,0.00016,2]
[392185301,1761243906038,-6018.67989434,0.0001881,2]
[392185302,1761243906181,-196.0,0.0001615,2]
[392185303,1761243906223,-440.95122642,0.0001881,2]
[392185304,1761243906288,-8726.10754716,0.0001881,2]
[392185305,1761243906346,-500.0,0.00018973,2]
[392185306,1761243906425,-196.0,0.000163,2]
[392185307,1761243906439,-8804.01,0.00019,2]
[392185308,1761243906482,-10000.01,0.00019,2]
[392185309,1761243906580,-10000.01,0.00019,2]
[392185310,1761243906709,-196.0,0.0001645,2]
[392185311,1761243906763,-9608.01,0.00019,2]
[392185314,1761243908543,-166.54721963,0.000166,2]
[392185315,1761243910504,-29.45278037,0.000166,2]
[392185316,1761243910527,-196.0,0.0001675,2]
[392185317,1761243910548,-70.8156836,0.000169,2]
[392185318,1761243911598,-125.1843164,0.000169,2]
[392185319,1761243911627,-196.0,0.0001705,2]
[392185320,1761243911655,-196.0,0.000172,2]
[392185321,1761243911691,-196.0,0.0001735,2]
[392185322,1761243911719,-196.0,0.000175,2]
[392185323,1761243911747,-196.0,0.0001765,2]
[392185324,1761243911777,-196.0,0.000178,2]
[392185325,1761243911807,-196.0,0.0001795,2]
[392185326,1761243911836,-285.35977666,0.000181,2]
[392185327,1761243911864,-500.0,0.00018973,2]
[392185328,1761243912162,-5434.92181388,0.00019,2]
[392185329,1761243912188,-10000.01,0.00019,2]
[392185330,1761243912222,-10000.01,0.00019,2]
[392185331,1761243912240,-10000.01,0.00019,2]
[392185332,1761243912257,-10000.01,0.00019,2]
[392185333,1761243913196,-285.61960498,0.00018973,2]
[392185334,1761243920702,-214.38039502,0.00018783,2]
[392185335,1761243920730,-214.38039502,0.00018973,2]
[392185336,1761243920758,-343.50349268,0.00018973,2]
[392185337,1761243920786,-500.0,0.00018973,2]
[392185338,1761243920859,-7455.48143456,0.00019,2]
[392185339,1761243920887,-10000.01,0.00019,2]
[392185340,1761243921099,-10000.01,0.00019,2]
[392185341,1761243921229,-10000.01,0.00019,2]
[392185342,1761243921290,-186.54607078,0.00019,2]
[392185343,1761243925589,-282.40713663,0.0001881,2]
[392185345,1761243927137,-500.0,0.0001881,2]
[392185347,1761243944380,-486.40397188,0.00018622,2]
[392185348,1761243944666,-4298.5557798,0.00018622,2]
[392185349,1761243944700,-1402.8984404,0.0001881,2]
[392185350,1761243944775,-3382.06131128,0.0001881,2]
[392185351,1761243944804,-1301.97639655,0.000189,2]
[392185352,1761243944832,-131.93458434,0.00018973,2]
[392185353,1761243944881,-368.06541566,0.00018973,2]
[392185354,1761243944912,-500.0,0.00018973,2]
[392185355,1761243944941,-500.0,0.00018973,2]
[392185356,1761243944971,-500.0,0.00018973,2]
[392185357,1761243945033,-7000.01,0.00019,2]
[392185358,1761243945084,-10000.01,0.00019,2]
[392185359,1761243945235,-10000.01,0.00019,2]
[392185360,1761243945460,-10000.01,0.00019,2]
[392185361,1761243946006,-166.0,0.00019,2]
[392185362,1761243947691,-10000.01,0.00019,2]
[392185363,1761243947847,-10000.01,0.00019,2]
[392185364,1761243947955,-10000.01,0.00019,2]
[392185365,1761243948105,-10000.01,0.00019,2]
[392185366,1761243949798,-154.61107366,0.00019,2]
[392185367,1761243951326,-345.75950302,0.00019,2]
[392185368,1761243954057,-290.68179119,0.00019,2]
[392185369,1761243955614,-229.55345096,0.00019,2]
[392185370,1761243956838,-10000.01,0.00019,2]
[392185371,1761243957067,-10000.01,0.00019,2]
[392185372,1761243957227,-10000.01,0.00019,2]
[392185373,1761243957383,-10000.01,0.00019,2]
[392185374,1761243957503,-10000.01,0.00019,2]
[392185375,1761243957671,-187.13427058,0.00019,2]
[392185376,1761243968763,-300.0,0.00018809,2]
[392185377,1761243968805,-9400.01,0.0001881,2]
[392185378,1761243968864,-10000.01,0.0001881,2]
[392185379,1761243969030,-3626.83395842,0.0001881,2]
[392185380,1761243969066,-2746.34208316,0.00019,2]
[392185381,1761243969151,-10000.01,0.00019,2]
[392185382,1761243969307,-10000.01,0.00019,2]
[392185383,1761243974391,-368.84436072,0.0001879,2]
[392185384,1761243974732,-10000.01,0.0001879,2]
[392185385,1761243974848,-10000.01,0.0001879,2]
[392185386,1761243974980,-10000.01,0.0001879,2]
[392185387,1761243975119,-1168.23274728,0.0001879,2]
[392185388,1761243975149,-3506.38977456,0.0001881,2]
[392185389,1761243975185,-650.76495632,0.0001881,2]
[392185390,1761243975234,-10000.01,0.00019,2]
[392185391,1761243975985,-203.51778503,0.00019,2]
[392185392,1761243977445,-172.905253,0.00019,2]
[392185393,1761243980120,-172.5,0.00019,2]
[392185394,1761243980930,-10000.01,0.00019,2]
[392185395,1761243981154,-10000.01,0.00019,2]
[392185396,1761243981600,-246.68294829,0.00019,2]
[392185397,1761243982397,249.33,0.00012372,30]
[392185398,1761243982794,498.66,0.00012961,30]
[392185399,1761243983198,747.99,0.00013551,30]
[392185400,1761243983591,997.33,0.0001414,30]
[392185401,1761243983870,-300.0,0.000188,2]
[392185402,1761243983894,-147.06699253,0.00019,2]
[392185403,1761243983944,-10000.01,0.00019,2]
[392185404,1761243983958,-10000.01,0.00019,2]
[392185405,1761243983993,1246.66,0.00014729,30]
[392185406,1761243984040,-10000.01,0.00019,2]
[392185407,1761243984195,-10000.01,0.00019,2]
[392185408,1761243984359,-3322.89708455,0.00019,2]
[392185409,1761243984383,-3354.2158309,0.00019,2]
[392185410,1761243984434,1495.99,0.00015318,30]
[392185411,1761243984831,1745.32,0.00015907,30]
[392185412,1761243985302,1994.65,0.00016496,30]
[392185413,1761243986230,2243.98,0.00017086,30]
[392185414,1761243986658,2493.31,0.00017675,30]
[392185415,1761243986838,-600.0,0.0001881,2]
[392185416,1761243986870,-611.84956469,0.000189,2]
[392185417,1761243986904,-300.0,0.00019,2]
[392185418,1761243986937,-300.0,0.00019,2]
[392185419,1761243986974,-300.0,0.00019185,2]
[392185420,1761243987014,-300.0,0.00019185,2]
[392185421,1761243987051,-300.0,0.00019185,2]
[392185422,1761243987088,-300.0,0.00019185,2]
[392185423,1761243987124,-300.0,0.00019185,2]
[392185424,1761243987160,-300.0,0.00019185,2]
[392185425,1761243987196,-300.0,0.00019185,2]
[392185426,1761243987231,-300.0,0.00019185,2]
[392185427,1761243987265,-300.0,0.00019185,2]
[392185428,1761243987455,-300.0,0.00019185,2]
[392185429,1761243987491,-76.31087062,0.00019185,2]
[392185430,1761243987675,-223.68912938,0.00019185,2]
[392185431,1761243987712,-300.0,0.00019185,2]
[392185432,1761243987750,-300.0,0.00019185,2]
[392185433,1761243987789,-300.0,0.00019185,2]
[392185434,1761243987827,-300.0,0.00019185,2]
[392185435,1761243987861,-2152.63174124,0.00019314,2]
[392185436,1761243987960,-2847.36825876,0.00019314,2]
[392185437,1761243988299,500.0,0.00018973,2]
[392185438,1761243988704,-581.77,0.00019316,2]
[392185439,1761243988735,-11.24278351,0.00019379,2]
[392185440,1761243992270,500.0,0.00018973,2]
[392185441,1761243994096,300.0,0.000188,2]
[392185442,1761243994207,300.0,0.00019,2]
[392185443,1761243994477,-293.08938649,0.00019379,2]
[392185444,1761243995904,-206.43739216,0.00019379,2]
[392185445,1761243997500,-89.23043784,0.00019379,2]
[392185446,1761243997525,-310.92956216,0.00019521,2]
[392185447,1761244004616,-248.98024892,0.00018973,2]
[392185448,1761244006733,-247.93383672,0.000188,2]
[392185449,1761244009897,-52.06616328,0.000188,2]
[392185450,1761244009921,-143.49014779,0.00018973,2]
[392185452,1761244020476,-186.8754605,0.000188,2]
[392185453,1761244022532,-113.1245395,0.000188,2]
[392185454,1761244022561,-43.37598388,0.00018973,2]
[392185456,1761244030219,-196.0,0.00016,2]
[392185457,1761244030250,-196.0,0.00016021,2]
[392185458,1761244030284,-196.0,0.00016042,2]
[392185459,1761244030315,-196.0,0.00016064,2]
[392185460,1761244030344,-196.0,0.00016085,2]
[392185461,1761244030374,-196.0,0.00016106,2]
[392185462,1761244030404,-196.0,0.00016127,2]
[392185463,1761244030434,-196.0,0.00016148,2]
[392185464,1761244030463,-196.0,0.0001617,2]
[392185465,1761244030491,-196.0,0.00016191,2]
[392185466,1761244030521,-196.0,0.00016212,2]
[392185467,1761244030555,-196.0,0.00016233,2]
[392185468,1761244030585,-196.0,0.00016255,2]
[392185469,1761244030615,-196.0,0.00016276,2]
[392185470,1761244030644,-300.0,0.000188,2]
[392185471,1761244030673,-20.36890473,0.00018973,2]
[392185472,1761244030974,196.0,0.00016297,2]
[392185473,1761244031009,300.0,0.00019,2]
[392185474,1761244031037,196.0,0.00016318,2]
[392185475,1761244031291,196.0,0.00016339,2]
[392185476,1761244031573,196.0,0.00016361,2]
[392185477,1761244031914,196.0,0.00016382,2]
[392185478,1761244032197,196.0,0.00016403,2]
[392185479,1761244032483,196.0,0.00016424,2]
[392185480,1761244033248,196.0,0.00016445,2]
[392185481,1761244033577,196.0,0.00016467,2]
[392185482,1761244033683,196.0,0.0001584,2]
[392185483,1761244033948,196.0,0.00016488,2]
[392185484,1761244034145,196.0,0.00016509,2]
[392185485,1761244034438,196.0,0.0001653,2]
[392185486,1761244034743,196.0,0.00016552,2]
[392185487,1761244035015,196.0,0.00016573,2]
[392185488,1761244035288,196.0,0.00016594,2]
[392185489,1761244035562,196.0,0.00016615,2]
[392185490,1761244035834,196.0,0.00016636,2]
[392185491,1761244036549,43.27219054,0.00016658,2]
[392185492,1761244036573,152.72780946,0.00016658,2]
[392185493,1761244036840,196.0,0.00016679,2]
[392185494,1761244037109,196.0,0.000167,2]
[392185495,1761244037383,196.0,0.00016721,2]
[392185496,1761244037653,196.0,0.00016742,2]
[392185497,1761244037939,196.0,0.00016764,2]
[392185498,1761244038205,196.0,0.00016785,2]
[392185499,1761244038476,196.0,0.00016806,2]
[392185500,1761244038748,196.0,0.00016827,2]
[392185501,1761244039036,196.0,0.00016848,2]
[392185502,1761244039311,196.0,0.0001687,2]
[392185503,1761244039597,196.0,0.00016891,2]
[392185504,1761244039863,196.0,0.00016912,2]
[392185505,1761244040137,196.0,0.00016933,2]
[392185506,1761244040418,196.0,0.00016955,2]
[392185507,1761244040683,196.0,0.00016976,2]
[392185508,1761244041418,196.0,0.00016997,2]
[392185509,1761244041690,196.0,0.00017018,2]
[392185510,1761244041982,196.0,0.00017039,2]
[392185511,1761244042109,300.0,0.000188,2]
[392185512,1761244042258,196.0,0.00017061,2]
[392185513,1761244042289,300.0,0.00019,2]
[392185514,1761244042543,196.0,0.00017082,2]
[392185515,1761244042591,2767.40816881,0.00019314,2]
[392185516,1761244042881,196.0,0.00017103,2]
[392185517,1761244043080,196.0,0.00017124,2]
[392185518,1761244043397,196.0,0.00017145,2]
[392185519,1761244043673,196.0,0.00017167,2]
[392185520,1761244043962,196.0,0.00017188,2]
[392185521,1761244044271,196.0,0.00017209,2]
[392185522,1761244044544,196.0,0.0001723,2]
[392185523,1761244044852,196.0,0.00017252,2]
[392185524,1761244045129,196.0,0.00017273,2]
[392185525,1761244045420,196.0,0.00017294,2]
[392185526,1761244045703,196.0,0.00017315,2]
[392185527,1761244045979,196.0,0.00017336,2]
[392185528,1761244046260,196.0,0.00017358,2]
[392185529,1761244046546,11.87402173,0.00017379,2]
[392185530,1761244046567,184.12597827,0.00017379,2]
[392185531,1761244046826,196.0,0.000174,2]
[392185532,1761244047112,196.0,0.00017421,2]
[392185533,1761244047398,196.0,0.00017442,2]
[392185534,1761244047676,196.0,0.00017464,2]
[392185535,1761244047956,196.0,0.00017485,2]
[392185536,1761244048642,196.0,0.00017506,2]
[392185537,1761244048912,196.0,0.00017527,2]
[392185538,1761244049191,196.0,0.00017548,2]
[392185539,1761244049472,196.0,0.0001757,2]
[392185541,1761244049780,196.0,0.00017591,2]
[392185542,1761244050070,196.0,0.00017612,2]
[392185543,1761244050357,196.0,0.00017633,2]
[392185544,1761244051089,196.0,0.00017655,2]
[392185546,1761244051379,196.0,0.00017676,2]
[392185547,1761244051658,196.0,0.00017697,2]
[392185548,1761244051942,196.0,0.00017718,2]
[392185549,1761244052257,196.0,0.00017739,2]
[392185550,1761244052345,300.0,0.00019,2]
[392185551,1761244052642,196.0,0.00017761,2]
[392185552,1761244052838,196.0,0.00017782,2]
[392185553,1761244053310,196.0,0.00017803,2]
[392185554,1761244053380,300.0,0.000188,2]
[392185555,1761244053608,196.0,0.00017824,2]
[392185556,1761244053892,196.0,0.00017845,2]
[392185557,1761244054205,196.0,0.00017867,2]
[392185558,1761244054506,196.0,0.00017888,2]
[392185559,1761244054784,196.0,0.00017909,2]
[392185560,1761244055208,196.0,0.0001793,2]
[392185561,1761244055483,196.0,0.00017952,2]
[392185562,1761244055745,196.0,0.00017973,2]
[392185563,1761244056007,196.0,0.00017994,2]
[392185564,1761244056278,196.0,0.00018015,2]
[392185565,1761244056559,196.0,0.00018036,2]
[392185566,1761244056844,196.0,0.00018058,2]
[392185567,1761244057118,196.0,0.00018079,2]
[392185568,1761244057386,2747.88402173,0.000181,2]
[392185569,1761244057411,10000.01,0.000181,2]
[392185570,1761244057435,6210.30090207,0.000181,2]
[392185571,1761244058055,3789.70909793,0.00019314,2]
[392185572,1761244058081,1210.29090207,0.00019314,2]
[392185573,1761244059244,217.27,0.00017377,30]
[392185574,1761244059686,434.54,0.00018205,30]
[392185575,1761244060084,651.8,0.00019032,30]
[392185576,1761244060597,869.07,0.0001986,30]
[392185577,1761244060898,1086.34,0.00020687,30]
[392185578,1761244062963,300.0,0.00019,2]
[392185579,1761244063903,300.0,0.000188,2]
[392185580,1761244074335,300.0,0.00019,2]
[392185581,1761244075532,300.0,0.000188,2]
[392185583,1761244081317,5000.0,0.00019314,2]
[392185584,1761244084424,300.0,0.00019,2]
[392185585,1761244085932,300.0,0.000188,2]
[392185586,1761244090599,300.0,0.000175,2]
[392185587,1761244095493,300.0,0.00019,2]
[392185588,1761244097250,300.0,0.000188,2]
[392185589,1761244100784,300.0,0.000175,2]
[392185590,1761244104014,3200.01,0.00019314,2]
[392185591,1761244104039,1799.99,0.00019314,2]
[392185592,1761244106134,300.0,0.00019,2]
[392185593,1761244107493,300.0,0.000188,2]
[392185595,1761244112579,159.0,8.3e-07,2]
[392185596,1761244112982,159.0,8.3e-07,2]
[392185597,1761244114023,159.0,8.3e-07,2]
[392185598,1761244115520,5336.35747231,0.0002,20]
[392185599,1761244115847,6240.44583184,0.00024,60]
[392185601,1761244124344,-300.0,0.000175,2]
[392185602,1761244124366,-200.0,0.000175,2]
[392185604,1761244125586,-100.0,0.000175,2]
[392185605,1761244125618,-300.0,0.000188,2]
[392185606,1761244125649,-300.0,0.00019,2]
[392185607,1761244128415,-600.0,0.00017325,2]
[392185608,1761244137525,201.5,0.00017697,30]
[392185610,1761244137925,403.0,0.0001854,30]
[392185611,1761244138346,604.49,0.00019382,30]
[392185612,1761244138750,805.99,0.00020225,30]
[392185613,1761244139187,1007.49,0.00021068,30]
[392185614,1761244145934,196.0,0.00016,2]
[392185615,1761244146212,196.0,0.00016084,2]
[392185616,1761244146496,196.0,0.00016168,2]
[392185617,1761244146862,196.0,0.00016252,2]
[392185618,1761244147025,-195.24216983,0.00018999,2]
[392185619,1761244147054,196.0,0.00016336,2]
[392185620,1761244147313,196.0,0.0001642,2]
[392185621,1761244147600,196.0,0.00016504,2]
[392185622,1761244147973,196.0,0.00016588,2]
[392185623,1761244148244,196.0,0.00016672,2]
[392185624,1761244149014,196.0,0.00016756,2]
[392185625,1761244149386,196.0,0.0001684,2]
[392185626,1761244149559,196.0,0.00016924,2]
[392185627,1761244149831,196.0,0.00017008,2]
[392185628,1761244150092,-179.90306882,0.00018809,2]
[392185629,1761244150123,196.0,0.00017092,2]
[392185630,1761244150388,196.0,0.00017176,2]
[392185631,1761244150704,196.0,0.0001726,2]
[392185632,1761244151108,-4000.30191359,0.00018809,2]
[392185633,1761244151131,-1241.01275543,0.000189,2]
[392185634,1761244151153,-104.75783017,0.00018999,2]
[392185635,1761244151174,-3549.02016185,0.00019,2]
[392185636,1761244151442,196.0,0.00017344,2]
[392185637,1761244151678,-324.82904481,0.00019,2]
[392185638,1761244151722,196.0,0.00017428,2]
[392185639,1761244156118,-154.77085181,0.00017512,2]
[392185640,1761244158265,-41.22914819,0.00017512,2]
[392185641,1761244158287,-154.01302164,0.00017596,2]
[392185658,1761244160336,-41.98697836,0.00017596,2]
[392185659,1761244160359,-110.13816912,0.0001768,2]
[392185660,1761244161803,-85.86183088,0.0001768,2]
[392185661,1761244161824,-167.82555979,0.00017764,2]
[392185662,1761244164931,-28.17444021,0.00017764,2]
[392185663,1761244164955,-196.0,0.00017848,2]
[392185664,1761244164977,-75.82555979,0.00017932,2]
[392185665,1761244167775,-120.17444021,0.00017932,2]
[392185666,1761244167800,-182.82555979,0.00018016,2]
[392185701,1761244169278,-13.17444021,0.00018016,2]
[392185702,1761244169301,-151.34296655,0.000181,2]
[392185703,1761244200554,-51.93283321,0.000181,2]
[392185704,1761244200577,-178.60695923,0.00018559,2]
[392185705,1761244205191,-468.42473236,0.00018559,2]
[392185706,1761244206791,-311.90306882,0.00018559,2]
[392185707,1761244213117,-168.0,0.00018373,2]
[392185708,1761244216271,190.81,0.00017647,30]
[392185709,1761244216705,381.62,0.00018487,30]
[392185710,1761244217128,572.44,0.00019327,30]
[392185711,1761244217545,763.25,0.00020168,30]
[392185712,1761244217984,954.06,0.00021008,30]
[392185713,1761244218968,-156.55367683,0.000175,2]
[392185714,1761244227561,-143.44632317,0.000175,2]
[392185715,1761244227583,-103.50558501,0.000175,2]
[392185774,1761244232909,-196.49441499,0.000175,2]
[392185776,1761244232919,-85.85105493,0.00018373,2]
[392185778,1761244232930,-395.15453008,0.00018373,2]
[392185780,1761244232942,-682.79400798,0.00018373,2]
[392185783,1761244232954,-1952.07769272,0.00018373,2]
[392185785,1761244232963,-2971.97421689,0.00018559,2]
[392185787,1761244232972,-200.0,0.00018559,2]
[392185788,1761244232981,-300.0,0.00018999,2]
[392185790,1761244232990,-300.0,0.00018999,2]
[392185792,1761244232999,-300.0,0.00018999,2]
[392185794,1761244233008,-300.0,0.00018999,2]
[392185796,1761244233017,-300.0,0.00018999,2]
[392185798,1761244233026,-1200.0,0.00018999,2]
[392185800,1761244233035,-24863.12530847,0.00019,2]
[392185802,1761244233046,-1999.316,0.00019,2]
[392185804,1761244233058,-596.44076446,0.00019,2]
[392185806,1761244233067,-262.93108593,0.00019323,2]
[392185808,1761244233079,-136.72516152,0.00019323,2]
[392185810,1761244233089,-445.23,0.0001949,2]
[392185813,1761244233099,-275.32417648,0.0001952,2]
[392185815,1761244233114,-924.67582352,0.0001952,2]
[392185817,1761244233124,-689.07043784,0.00019521,2]
[392185819,1761244233133,-405.16162281,0.0001985,2]
[392185821,1761244233144,-94.83837719,0.0001985,2]
[392185823,1761244233154,-500.0,0.0001985,2]
[392185825,1761244233163,-500.0,0.0001985,2]
[392185827,1761244233173,-260.16264461,0.0001985,2]
[392185968,1761244238509,-538.18671548,0.00018999,2]
[392185969,1761244238520,-500.0,0.00018999,2]
[392185970,1761244238542,-500.0,0.00018999,2]
[392185971,1761244238554,-500.0,0.00018999,2]
[392185972,1761244238567,-155.22978482,0.00018999,2]
[392185973,1761244238581,-344.77021518,0.00018999,2]
[392185974,1761244238592,-500.0,0.00018999,2]
[392185975,1761244238604,-44.36668492,0.00018999,2]
[392185976,1761244238618,-455.63331508,0.00018999,2]
[392185977,1761244238629,-500.0,0.00018999,2]
[392185978,1761244238640,-500.0,0.00018999,2]
[392185979,1761244238652,-500.0,0.00018999,2]
[392185980,1761244238663,-500.0,0.00018999,2]
[392185981,1761244238673,-363.44126327,0.00018999,2]
[392185982,1761244238683,-500.0,0.00018999,2]
[392185983,1761244238699,-491.78836771,0.00018999,2]
[392185984,1761244238709,-532.71491353,0.00018999,2]
[392185985,1761244238721,-500.0,0.00018999,2]
[392185986,1761244238733,-500.0,0.00018999,2]
[392185987,1761244238743,-500.0,0.00018999,2]
[392185988,1761244238754,-500.0,0.00018999,2]
[392185989,1761244238766,-500.0,0.00018999,2]
[392185990,1761244238776,-500.0,0.00018999,2]
[392185991,1761244238787,-500.0,0.00018999,2]
[392185992,1761244238798,-500.0,0.00018999,2]
[392185993,1761244238808,-500.0,0.00018999,2]
[392185994,1761244238819,-500.0,0.00018999,2]
[392185995,1761244238830,-239.83735539,0.0001985,2]
[392185996,1761244238841,-500.0,0.0001985,2]
[392185997,1761244238851,-500.0,0.0001985,2]
[392185998,1761244238862,-500.0,0.0001985,2]
[392185999,1761244238874,-300.0,0.0001991,2]
[392186000,1761244238885,-300.0,0.0001991,2]
[392186001,1761244238897,-300.0,0.0001991,2]
[392186002,1761244238911,-300.0,0.0001991,2]
[392186003,1761244238922,-300.0,0.0001991,2]
[392186004,1761244238932,-300.0,0.0001991,2]
[392186005,1761244238947,-300.0,0.0001991,2]
[392186006,1761244238958,-300.0,0.0001991,2]
[392186007,1761244238970,-300.0,0.0001991,2]
[392186008,1761244238982,-300.0,0.0001991,2]
[392186009,1761244238993,-300.0,0.0001991,2]
[392186010,1761244239004,-300.0,0.0001991,2]
[392186011,1761244239015,-300.0,0.0001991,2]
[392186012,1761244239026,-300.0,0.0001991,2]
[392186013,1761244239036,-300.0,0.0001991,2]
[392186014,1761244239047,-382.72330282,0.00019999,2]
[392186015,1761244239059,-243.75009397,0.00019999,2]
[392186016,1761244239068,-334.02562784,0.0002,2]
[392186017,1761244239081,-4216.13967167,0.0002,2]
[392186018,1761244239092,-62.63021139,0.0002,2]
[392186019,1761244239105,-305.26814714,0.0002,2]
[392186020,1761244239116,-5035.3870145,0.0002,2]
[392186021,1761244239129,-5100.0,0.0002,2]
[392186030,1761244241330,-3e-08,0.0002,2]
[392186031,1761244241342,-12321.11396897,0.0002,2]
[392186032,1761244241352,-4000.50536951,0.0002,2]
[392186053,1761244246673,-848.2569905,0.00019832,2]
[392186055,1761244246683,-3707.09891634,0.0002,2]
[392186056,1761244246693,-4070.79954491,0.0002,2]
[392186058,1761244246703,-1500.0,0.00020068,2]
[392186060,1761244246712,-1028.84396346,0.0002027,2]
[392186062,1761244246721,-600.0,0.00020307,2]
[392186064,1761244246732,-858.31080678,0.00020398,2]
[392186066,1761244246741,-1000.0,0.00020398,2]
[392186069,1761244246751,-1000.0,0.00020398,2]
[392186070,1761244246761,-1000.0,0.00020398,2]
[392186072,1761244246771,-1000.0,0.00020398,2]
[392186073,1761244246781,-1000.0,0.00020398,2]
[392186074,1761244246791,-1000.0,0.00020398,2]